bitfinex/quotes_ETHUSD_20260120
["timestamp","ask_amount","ask_price","bid_price","bid_amount"]
[1768920131682,0.9328225,3068.9,3066.8,0.95125357]
[1768920131886,0.001,3069.0,3066.8,0.002]
[1768920131887,0.9328225,3068.7,3066.8,0.002]
[1768920132184,0.9328225,3068.3,3066.8,0.002]
[1768920132371,0.9328225,3068.1,3066.8,0.002]
[1768920132550,9.77771982,3068.2,3066.8,0.002]
[1768920132551,2.00387673,3068.0,3066.8,0.002]
[1768920132889,0.485,3067.9,3066.8,0.002]
[1768920133053,2.00387673,3068.0,3066.8,0.002]
[1768920133054,0.485,3067.8,3066.8,0.002]
[1768920134549,3.25970813,3067.8,3066.8,0.002]
[1768920134754,3.25889027,3068.6,3066.8,0.002]
[1768920134949,0.90247835,3068.4,3066.8,0.002]
[1768920135189,0.90247835,3068.3,3066.8,0.002]
[1768920135406,0.90247835,3068.1,3066.8,0.002]
[1768920135699,3.225138,3068.3,3066.1,0.002]
[1768920135700,2.620987,3067.7,3066.1,0.002]
[1768920135992,1.38747835,3067.6,3066.1,0.002]
[1768920136455,0.485,3067.5,3066.1,0.002]
[1768920136652,0.485,3067.4,3066.1,0.002]
[1768920136900,0.90247835,3066.4,3065.1,0.002]
[1768920137192,2.75482782,3066.7,3064.9,0.002]
[1768920137193,0.90247835,3066.2,3064.9,0.002]
[1768920137509,0.0008,3065.4,3063.1,2.75482782]
[1768920137652,0.485,3065.3,3063.3,3.26437044]
[1768920137857,0.485,3065.3,3063.1,2.75482782]
[1768920138164,0.485,3065.3,3063.0,0.0016]
[1768920138363,0.90247835,3065.1,3063.0,0.0016]
[1768920138603,2.75482782,3065.2,3063.0,0.0016]
[1768920138604,0.90247835,3064.8,3063.0,0.0016]
[1768920138778,2.75482782,3064.4,3063.0,0.0016]
[1768920138960,2.75482782,3064.4,3062.6,0.0217391]
[1768920138961,0.0008,3063.4,3062.6,0.0217391]
[1768920139565,0.0008,3063.4,3062.6,3.28693577]
[1768920139764,0.0008,3063.4,3062.6,0.0217391]
[1768920140087,0.485,3063.3,3062.6,0.0217391]
[1768920140784,0.0008,3063.4,3062.6,6.5521381]
[1768920141107,0.0008,3063.4,3062.7,0.65541381]
[1768920141306,6.5295016,3063.4,3062.6,0.0217391]
[1768920141516,3.2651468,3063.4,3062.6,0.0217391]
[1768920141802,0.4858,3063.4,3062.6,6.55209325]
[1768920142010,0.0008,3063.4,3062.6,6.55209325]
[1768920142212,0.0008,3063.4,3062.7,0.65540933]
[1768920142566,0.0008,3063.7,3062.8,6.52997256]
[1768920142770,0.0008,3063.7,3062.7,3.92047012]
[1768920143090,0.0008,3063.7,3062.7,0.65540933]
[1768920143290,0.0008,3063.7,3062.6,0.0217391]
[1768920143498,0.0008,3063.7,3062.3,0.69685198]
[1768920143499,0.90327835,3063.7,3062.3,0.69685198]
[1768920143699,0.90327835,3063.7,3061.9,0.0016]
[1768920143700,0.90247835,3063.5,3061.9,0.0016]
[1768920143866,0.485,3063.4,3061.9,0.0016]
[1768920144225,0.90247835,3063.5,3061.9,0.0016]
[1768920144521,6.52911986,3063.2,3061.9,0.0016]
[1768920144679,0.79165982,3063.1,3061.9,0.0016]
[1768920146511,0.0008,3063.7,3061.9,0.0016]
[1768920146733,0.90247835,3063.5,3061.9,0.0016]
[1768920147018,0.90247835,3063.4,3061.9,0.0016]
[1768920148025,3.225138,3063.3,3061.9,0.0016]
[1768920148184,0.485,3063.2,3061.9,0.0016]
[1768920148526,3.26477309,3063.0,3061.9,0.0016]
[1768920148820,0.485,3063.2,3061.9,0.0016]
[1768920149125,0.0008,3063.7,3061.9,0.0016]
[1768920149126,0.0008,3063.7,3061.9,0.93566435]
[1768920149329,0.0008,3063.7,3062.0,0.96002233]
[1768920149495,0.0008,3063.7,3062.0,0.93406435]
[1768920149682,0.0008,3063.7,3062.1,0.93406435]
[1768920149882,0.0008,3063.7,3062.2,0.38682078]
[1768920150125,0.0008,3063.7,3062.3,0.03262014]
[1768920150328,3.7497115,3064.0,3062.3,0.93406435]
[1768920150329,0.486,3064.0,3062.3,0.93406435]
[1768920150545,4.16481006,3065.3,3062.2,0.38682078]
[1768920150546,3.26315633,3064.6,3062.5,0.93406435]
[1768920150849,0.485,3064.9,3062.6,0.93406435]
[1768920151036,0.485,3064.9,3062.7,1.32088513]
[1768920151237,0.485,3064.9,3062.7,0.38682078]
[1768920151238,3.225138,3064.7,3062.7,0.38682078]
[1768920151432,3.225138,3064.5,3062.2,0.38682078]
[1768920151735,3.225138,3064.1,3062.8,0.002]
[1768920151909,0.485,3064.0,3062.8,0.002]
[1768920152502,6.52762818,3063.9,3062.8,0.002]
[1768920152951,3.74870959,3064.0,3062.8,0.002]
[1768920153151,7.01241918,3064.0,3062.8,0.002]
[1768920153462,1.18624192,3064.0,3062.8,0.002]
[1768920153757,0.485,3064.0,3062.8,0.002]
[1768920154062,3.74871819,3064.0,3062.8,0.002]
[1768920154275,0.485,3064.0,3062.8,0.002]
[1768920154428,3.74873628,3064.0,3062.8,0.002]
[1768920154627,7.01247256,3064.0,3062.8,0.002]
[1768920154823,10.9774561,3064.0,3062.8,0.002]
[1768920155162,7.71371982,3064.0,3062.8,0.002]
[1768920155674,14.24119238,3064.0,3062.8,0.002]
[1768920155849,3.225138,3063.9,3062.5,0.002]
[1768920156439,10.4924561,3064.0,3062.5,0.002]
[1768920156650,1.53424561,3063.9,3062.5,0.002]
[1768920156854,0.90247835,3063.8,3062.5,0.002]
[1768920157364,1.04924561,3063.9,3062.5,0.002]
[1768920157514,0.485,3063.8,3062.5,0.002]
[1768920158458,0.485,3063.8,3062.5,0.93606435]
[1768920158787,0.485,3063.8,3062.5,7.46662197]
[1768920159083,0.485,3063.8,3062.6,0.7466622]
[1768920159084,3.74895931,3063.8,3062.6,0.7466622]
[1768920159456,7.01291862,3063.8,3062.5,0.002]
[1768920159650,10.27687793,3063.8,3062.5,0.002]
[1768920160387,0.90247835,3063.7,3062.5,0.002]
[1768920160563,0.90247835,3063.5,3061.9,0.0016]
[1768920161067,3.225138,3063.3,3061.9,0.0016]
[1768920161383,0.41276164,3063.2,3061.9,0.0016]
[1768920161559,0.485,3063.1,3061.9,0.0016]
[1768920161762,0.485,3063.1,3061.2,6.03522313]
[1768920161763,0.0008,3062.3,3061.2,0.002]
[1768920161947,0.485,3062.2,3061.2,0.002]
[1768920162597,6.53146532,3062.1,3061.2,0.002]
[1768920162775,3.26573266,3062.1,3061.2,0.002]
[1768920163289,7.01630256,3062.2,3061.2,0.002]
[1768920163472,0.70171026,3062.1,3061.2,0.002]
[1768920164283,0.70171026,3062.1,3060.0,3.29209118]
[1768920164284,0.91548912,3061.7,3060.0,0.02414626]
[1768920164487,0.91548912,3061.5,3060.0,1e-08]
[1768920164660,0.0008,3060.4,3060.0,1e-08]
[1768920164861,0.486,3060.3,3060.0,1e-08]
[1768920165074,0.486,3060.3,3058.8,0.002]
[1768920166078,0.486,3060.2,3058.9,3.26913394]
[1768920166282,0.485,3060.2,3059.1,0.32927339]
[1768920166482,0.485,3060.2,3059.1,0.002]
[1768920166679,9.80360118,3060.1,3059.1,0.002]
[1768920166881,9.80360118,3060.1,3058.8,0.002]
[1768920167057,0.485,3060.0,3058.8,0.002]
[1768920167555,9.80360118,3060.1,3058.8,0.002]
[1768920167556,0.0008,3059.4,3058.8,0.002]
[1768920167948,0.0008,3059.7,3058.8,0.002]
[1768920168158,0.0008,3060.4,3058.9,3.00341691]
[1768920168362,3.26665966,3061.3,3059.4,3.92793738]
[1768920168589,0.90630446,3061.8,3059.4,3.92793738]
[1768920168590,0.485,3061.2,3059.6,3.26840109]
[1768920168777,0.485,3061.2,3059.7,0.41929216]
[1768920169300,0.485,3061.2,3059.5,9.80549917]
[1768920169480,0.485,3061.2,3059.5,6.53699125]
[1768920169685,0.485,3061.2,3059.5,9.80549917]
[1768920169867,0.485,3061.2,3059.5,7.46151172]
[1768920170066,3.26615932,3061.7,3059.6,0.92452047]
[1768920170398,0.485,3061.8,3060.1,0.92452047]
[1768920170690,0.485,3061.8,3060.2,10.72780128]
[1768920170896,0.485,3061.8,3060.5,0.92452047]
[1768920171074,0.0008,3062.3,3060.5,0.92452047]
[1768920171889,0.0008,3062.3,3060.6,18.654063]
[1768920172092,0.0008,3062.3,3060.7,2.6210336]
[1768920172405,3.26506304,3063.7,3062.0,3.00341691]
[1768920172578,3.26506304,3063.7,3061.7,0.484]
[1768920172775,0.001,3063.7,3061.9,27.456802]
[1768920172966,0.001,3063.7,3061.8,10.72267839]
[1768920172967,0.001,3063.7,3062.3,28.261632]
[1768920173371,0.001,3063.7,3062.2,0.92452047]
[1768920173372,0.001,3064.3,3063.1,2.93211659]
[1768920173796,0.001,3064.3,3062.2,0.92452047]
[1768920173797,6.52778938,3064.3,3062.2,0.92452047]
[1768920173992,6.52778938,3064.3,3062.1,0.484]
[1768920173993,9.79119072,3064.3,3062.1,0.484]
[1768920174206,9.79119072,3064.3,3062.0,1.37334366]
[1768920174509,9.79119072,3064.3,3061.7,3.26615398]
[1768920174510,3.225138,3064.0,3061.7,3.26615398]
[1768920174710,6.52784124,3063.8,3061.7,6.5323133]
[1768920174918,6.52784124,3063.8,3061.6,0.484]
[1768920174919,9.79176186,3063.8,3061.6,6.53249908]
[1768920175401,6.52784124,3063.8,3061.6,9.79876508]
[1768920175606,6.52784124,3063.8,3061.6,6.53249908]
[1768920175920,0.70128412,3063.7,3061.7,0.79410196]
[1768920176507,0.90630446,3063.5,3061.7,0.79410196]
[1768920176703,6.5286936,3063.4,3061.0,0.128]
[1768920176937,6.5286936,3063.4,3061.3,0.484]
[1768920177296,6.5286936,3063.4,3061.4,0.484]
[1768920177904,6.5286936,3063.4,3061.2,0.484]
[1768920178081,0.65286936,3063.3,3061.3,0.7017599]
[1768920178283,3.26413369,3063.6,3061.4,16.83277347]
[1768920178481,0.001,3064.3,3062.9,2.93211659]
[1768920178710,0.001,3064.3,3063.1,6.52933302]
[1768920179022,0.485,3065.3,3063.2,26.472814]
[1768920179207,0.485,3065.3,3063.4,2.93211659]
[1768920179388,0.485,3065.3,3063.5,0.29321166]
[1768920179590,3.74732453,3065.3,3063.5,0.29321166]
[1768920180006,0.0008,3065.4,3063.9,2.93211659]
[1768920180184,0.0008,3065.7,3064.0,1.40852047]
[1768920180384,0.0008,3065.7,3063.6,2.93211659]
[1768920180596,6.85089534,3065.7,3063.7,0.32253283]
[1768920180799,6.85089534,3065.7,3063.6,0.484]
[1768920181042,6.85089534,3065.7,3063.1,2.93211659]
[1768920181043,0.90630446,3065.6,3063.4,3.26432334]
[1768920181322,0.90630446,3065.4,3063.4,3.26433366]
[1768920181629,0.90630446,3065.4,3062.7,0.128]
[1768920181630,0.90630446,3065.0,3062.1,2.93211659]
[1768920181797,3.225138,3064.9,3062.6,3.26511496]
[1768920181983,0.90630446,3065.0,3062.9,3.2648649]
[1768920181984,0.89814425,3064.8,3062.9,3.2648649]
[1768920182320,0.485,3064.8,3062.7,0.3265115]
[1768920182531,0.484,3065.1,3063.4,6.52868945]
[1768920182816,3.26264274,3065.0,3063.4,3.74834265]
[1768920183229,3.74657248,3065.1,3063.4,7.01268945]
[1768920183433,7.00914496,3065.1,3063.4,3.74834265]
[1768920183637,0.7009145,3065.0,3063.5,0.70127711]
[1768920183833,0.90630446,3064.9,3062.7,0.3265115]
[1768920184006,0.90630446,3064.9,3062.8,0.484]
[1768920184201,0.90630446,3064.9,3062.4,0.128]
[1768920184403,4.13144246,3064.8,3062.6,3.26514928]
[1768920184603,0.7009145,3065.0,3062.5,0.483]
[1768920184807,0.90630446,3065.4,3062.5,0.483]
[1768920184808,4.46936339,3064.9,3063.0,6.52954618]
[1768920185029,1.20660595,3064.9,3063.0,6.52954618]
[1768920185230,0.90630446,3065.4,3063.1,30.0]
[1768920185231,3.26232342,3065.3,3063.1,30.0]
[1768920185414,3.26232342,3065.3,3063.0,13.05909236]
[1768920185415,6.52400834,3065.6,3063.5,2.93211659]
[1768920185804,0.484,3065.9,3063.5,2.93211659]
[1768920185805,3.58896343,3065.7,3063.5,2.93211659]
[1768920186004,3.58894935,3065.7,3063.6,19.370177]
[1768920186338,3.58895514,3065.7,3063.7,0.92452047]
[1768920186501,0.35889551,3065.6,3063.7,0.483]
[1768920187001,3.26211058,3065.5,3063.8,6.52784124]
[1768920187200,6.52422116,3065.5,3063.8,3.26392062]
[1768920187402,6.52422116,3065.5,3062.6,3.527]
[1768920187403,0.90630446,3065.3,3062.6,3.527]
[1768920187652,3.225138,3064.8,3062.8,3.26496294]
[1768920187816,0.90630446,3064.9,3062.8,3.26496294]
[1768920187817,0.484,3064.7,3062.8,3.26497888]
[1768920188013,0.484,3064.6,3063.1,3.26462334]
[1768920188243,9.78633174,3065.5,3062.7,1.57043213]
[1768920188407,0.484,3064.9,3062.7,1.57043213]
[1768920188760,6.52422116,3065.5,3062.7,1.57043213]
[1768920189064,1.26294211,3065.4,3063.0,2.93211659]
[1768920189264,2.16924657,3065.4,3063.0,2.93211659]
[1768920189863,0.77894211,3065.4,3063.1,0.92452047]
[1768920190147,0.484,3065.3,3063.2,0.128]
[1768920190345,0.90630446,3065.2,3063.2,0.483]
[1768920190552,0.90630446,3065.2,3062.8,3.26498628]
[1768920190763,0.484,3065.3,3062.7,1.12891166]
[1768920190764,0.90630446,3064.8,3062.7,1.12891166]
[1768920190964,10.69519079,3064.7,3062.7,4.39400103]
[1768920191121,0.484,3064.6,3062.7,1.12891166]
[1768920191316,1.11791908,3064.5,3062.7,0.483]
[1768920191647,1.11791908,3064.5,3062.7,7.01317282]
[1768920191857,0.484,3064.4,3062.7,7.01317282]
[1768920192147,0.484,3064.4,3062.7,3.74807993]
[1768920192358,0.484,3064.4,3062.6,3.26516823]
[1768920192536,0.484,3064.4,3062.7,0.32651682]
[1768920192537,1.39030446,3064.4,3062.7,0.32651682]
[1768920192754,0.90630446,3064.4,3062.7,3.59158481]
[1768920192914,0.484,3064.3,3062.7,6.8566777]
[1768920193120,0.90630446,3065.1,3062.8,0.68566777]
[1768920193337,7.00932653,3065.0,3062.8,0.68566777]
[1768920193548,0.90630446,3064.9,3062.8,0.68566777]
[1768920194614,0.484,3064.8,3062.8,0.68566777]
[1768920194935,6.52592422,3064.7,3063.0,3.26477309]
[1768920195267,0.484,3064.6,3063.0,6.52954618]
[1768920195782,0.90349148,3064.5,3062.7,3.74808905]
[1768920195991,0.90349148,3064.5,3062.9,3.26486852]
[1768920196191,1.11763778,3064.5,3063.0,0.65298448]
[1768920196342,6.52592422,3064.7,3063.0,0.65298448]
[1768920196343,3.26296211,3064.7,3063.1,0.03264666]
[1768920196672,0.484,3064.9,3063.0,1.13598448]
[1768920196673,7.91304465,3064.9,3063.0,1.13598448]
[1768920196870,7.91304465,3064.9,3063.0,0.65298448]
[1768920196871,11.17584863,3064.9,3063.0,0.65298448]
[1768920197073,11.17584863,3064.9,3062.2,3.26551953]
[1768920197074,0.90349148,3064.8,3062.2,3.26551953]
[1768920197381,0.90349148,3064.4,3062.5,3.2672553]
[1768920197541,0.90349148,3064.4,3062.5,0.002]
[1768920197741,0.484,3064.3,3062.5,3.26720774]
[1768920197972,1.38749148,3064.3,3062.5,0.002]
[1768920198265,0.90349148,3064.2,3062.5,0.002]
[1768920198469,0.90349148,3064.2,3062.5,3.267235]
[1768920198775,0.90349148,3064.8,3063.0,3.26474627]
[1768920198991,0.90349148,3064.8,3062.6,3.25884009]
[1768920199192,0.15,3101.7,3063.3,0.96940009]
[1768920199193,3.26242694,3065.3,3063.3,0.96940009]
[1768920199343,3.26201685,3065.6,3063.6,2.93211659]
[1768920199662,3.26201685,3065.6,3063.7,0.483]
[1768920199870,0.0008,3065.7,3064.2,2.93211659]
[1768920200041,0.0008,3065.7,3064.3,0.483]
[1768920200977,0.0008,3065.7,3064.4,6.5265631]
[1768920201183,0.0008,3065.7,3064.5,0.483]
[1768920201492,0.0008,3065.7,3064.6,0.70095631]
[1768920201846,0.484,3066.9,3064.8,2.93211659]
[1768920202845,0.484,3067.6,3065.4,2.93211659]
[1768920203048,3.2599837,3067.5,3065.6,6.52400834]
[1768920203272,0.484,3067.6,3065.6,9.78601251]
[1768920203472,7.0038158,3067.6,3065.7,1.02690125]
[1768920203814,7.0038158,3067.6,3065.8,0.483]
[1768920204311,7.0038158,3067.6,3065.9,0.483]
[1768920204804,10.26375418,3067.6,3065.7,1.02690125]
[1768920204995,6.52017994,3067.4,3065.8,3.74475633]
[1768920205394,6.52017994,3067.4,3065.8,3.74478454]
[1768920205596,3.26008997,3067.4,3065.8,7.00657591]
[1768920205800,3.26008997,3067.4,3065.9,0.483]
[1768920206006,0.484,3067.6,3065.9,0.483]
[1768920206314,3.743925,3067.6,3066.0,0.70065759]
[1768920206479,0.484,3067.6,3066.0,0.70065759]
[1768920206677,3.2588737,3068.6,3066.0,1.67005768]
[1768920206881,0.90449148,3068.7,3066.0,1.67005768]
[1768920206882,3.74292129,3068.5,3066.4,2.93211659]
[1768920207184,3.4720083,3068.4,3066.6,6.5218809]
[1768920207398,7.63457416,3068.4,3066.6,3.26094045]
[1768920207597,7.63457416,3068.4,3066.1,0.96940009]
[1768920207598,2.18381,3068.0,3066.2,3.26135622]
[1768920207808,2.18381,3068.0,3066.2,3.26136373]
[1768920208013,2.18381,3068.0,3066.1,0.483]
[1768920208311,0.30873015,3067.9,3066.5,3.26104575]
[1768920208509,6.7310358,3068.4,3066.5,6.52209254]
[1768920208810,6.7310358,3068.4,3066.5,3.26104575]
[1768920208983,9.99011018,3068.4,3066.5,3.26104575]
[1768920209190,7.63452728,3068.4,3066.2,6.52273172]
[1768920209388,7.63452728,3068.4,3065.5,3.06011659]
[1768920209389,0.90349148,3068.0,3065.5,3.06011659]
[1768920209593,0.90349148,3067.8,3066.2,3.26136586]
[1768920209789,0.90349148,3067.8,3065.9,3.2616165]
[1768920210113,0.90349148,3067.8,3066.0,3.58767103]
[1768920210314,0.90349148,3067.8,3066.0,0.32616165]
[1768920210477,0.90349148,3067.8,3065.9,0.483]
[1768920210679,0.90349148,3067.8,3065.6,3.26192085]
[1768920210915,0.90349148,3067.8,3065.4,0.483]
[1768920211077,0.90349148,3067.6,3065.5,3.26210404]
[1768920211284,0.90349148,3067.6,3065.6,0.03262004]
[1768920211606,3.74234617,3068.1,3066.0,2.93211659]
[1768920211788,3.74234617,3068.1,3065.7,2.34144628]
[1768920211789,10.26103851,3068.1,3066.1,0.483]
[1768920211991,3.74234617,3068.1,3066.1,0.483]
[1768920212192,0.483,3068.1,3066.2,30.96940009]
[1768920212390,3.25894369,3068.5,3066.1,0.483]
[1768920212391,0.484,3068.7,3066.3,25.15298609]
[1768920212597,0.484,3068.7,3066.4,2.12761259]
[1768920212598,6.51763018,3068.6,3066.4,2.12761259]
[1768920212804,3.25881509,3068.6,3066.5,3.90151668]
[1768920212983,0.001,3068.7,3067.0,2.93211659]
[1768920213183,0.001,3068.7,3067.2,9.78090765]
[1768920213393,0.001,3068.7,3067.5,2.93211659]
[1768920213587,0.001,3069.0,3067.5,3.90151668]
[1768920213812,0.001,3069.0,3067.6,0.39015167]
[1768920214012,0.001,3069.0,3067.7,0.483]
[1768920214184,0.001,3069.0,3067.6,0.39015167]
[1768920214385,0.001,3069.0,3067.7,0.483]
[1768920214689,0.001,3069.0,3067.7,0.96940009]
[1768920214892,6.513385,3070.6,3068.0,3.90151668]
[1768920215187,9.77103213,3070.3,3068.1,6.51869234]
[1768920215422,0.90349148,3070.1,3068.2,0.74880924]
[1768920215622,0.90349148,3069.7,3067.6,3.25987117]
[1768920215923,3.225138,3069.8,3066.9,3.26052342]
[1768920215924,0.90349148,3069.3,3066.9,3.26052342]
[1768920216122,0.90349148,3069.3,3066.7,3.26080295]
[1768920216123,3.225138,3069.2,3066.7,3.26080295]
[1768920216320,0.90349148,3068.9,3066.4,0.482]
[1768920216495,0.90349148,3068.7,3066.9,3.26055957]
[1768920216691,0.90349148,3068.7,3067.0,0.32605596]
[1768920216897,0.90349148,3068.7,3067.0,3.58656799]
[1768920217093,3.225138,3069.4,3067.1,6.5208177]
[1768920217421,0.90349148,3069.0,3067.0,0.32605596]
[1768920217592,0.90349148,3069.0,3067.0,6.5209775]
[1768920217792,0.482,3069.1,3067.0,6.5209775]
[1768920218429,0.90349148,3069.0,3067.0,6.5209775]
[1768920218829,10.67675183,3069.6,3067.1,0.96940009]
[1768920219039,1.06745236,3070.2,3068.2,3.90151668]
[1768920219358,3.25530553,3072.0,3068.9,18.153324]
[1768920219359,0.482,3071.1,3068.9,18.153324]
[1768920219502,4.15935409,3071.4,3069.3,2.93211659]
[1768920219937,4.15935409,3071.4,3068.5,1.33097039]
[1768920219938,0.90349148,3071.3,3068.5,0.96940009]
[1768920220238,9.76758783,3071.4,3068.6,0.482]
[1768920220239,0.90349148,3071.1,3068.6,0.482]
[1768920220532,3.225138,3071.2,3068.7,0.482]
[1768920220533,0.90349148,3070.9,3068.7,0.482]
[1768920221050,0.90349148,3070.9,3068.5,0.482]
[1768920221339,7.41645226,3070.8,3068.6,6.51763018]
[1768920221636,7.41645226,3070.8,3068.6,9.77644527]
[1768920221933,0.96560636,3071.5,3069.3,2.93211659]
[1768920222140,0.96560636,3071.5,3068.8,0.128]
[1768920222141,4.22063224,3072.2,3069.9,2.93211659]
[1768920222342,0.96560636,3072.0,3070.0,0.482]
[1768920222511,13.02007405,3072.2,3068.7,1.02584453]
[1768920222512,0.96560636,3071.4,3068.7,1.02584453]
[1768920222715,0.96560636,3071.2,3068.8,0.44317261]
[1768920222926,4.19074436,3070.9,3068.8,0.44317261]
[1768920223111,6.51317288,3070.7,3068.9,3.25849652]
[1768920223313,6.51317288,3070.7,3068.8,0.44317261]
[1768920223542,6.51317288,3070.7,3068.8,3.25856694]
[1768920223709,6.51317288,3070.7,3068.3,0.39015167]
[1768920223710,0.96560636,3070.5,3068.3,0.39015167]
[1768920224036,0.96560636,3070.3,3068.5,3.25885709]
[1768920224239,0.96560636,3070.3,3068.3,3.64926846]
[1768920224240,0.96560636,3070.3,3068.3,0.39015167]
[1768920224541,0.482,3070.2,3067.9,0.482]
[1768920224834,0.96560636,3070.0,3068.2,3.25915918]
[1768920225034,0.96560636,3070.0,3067.8,0.482]
[1768920225210,0.482,3070.2,3067.8,0.482]
[1768920225211,3.25730791,3070.1,3068.0,2.93211659]
[1768920225419,6.51461582,3070.1,3068.0,2.93211659]
[1768920225731,0.69966158,3070.0,3068.1,0.94512339]
[1768920227121,0.69966158,3070.0,3068.2,0.99921108]
[1768920227355,3.73901071,3070.3,3068.3,6.51826744]
[1768920227659,6.99602142,3070.3,3068.3,6.51826744]
[1768920228157,0.95628819,3070.2,3068.1,0.94512339]
[1768920228358,0.95628819,3070.0,3068.2,3.25922847]
[1768920228559,0.95628819,3070.0,3067.9,0.482]
[1768920228759,0.95628819,3070.0,3068.0,3.25942626]
[1768920228968,0.95628819,3069.8,3066.8,4.2598635]
[1768920229139,2.93211659,3070.1,3067.6,3.25979698]
[1768920229140,0.95628819,3069.6,3067.6,3.25979698]
[1768920229342,0.95628819,3069.6,3067.1,0.482]
[1768920229343,0.95628819,3069.4,3067.2,3.26030255]
[1768920229532,0.95628819,3069.4,3067.2,9.78090765]
[1768920229733,0.482,3069.3,3067.3,2.92516807]
[1768920229935,1.43828819,3069.3,3067.3,0.002]
[1768920230134,0.95628819,3069.2,3067.4,0.65226051]
[1768920230333,0.482,3069.1,3067.4,0.65226051]
[1768920230933,0.482,3069.1,3067.3,0.002]
[1768920230934,0.95628819,3068.8,3067.3,0.002]
[1768920231338,7.47370597,3068.7,3067.3,0.002]
[1768920231840,0.482,3068.6,3067.3,0.002]
[1768920232040,7.47370597,3068.7,3067.3,0.002]
[1768920232252,0.7473706,3068.6,3067.3,0.002]
[1768920232459,0.482,3068.5,3067.3,0.002]
[1768920233069,0.482,3068.4,3067.3,0.002]
[1768920233272,0.95628819,3068.3,3067.3,0.002]
[1768920233467,4.2154513,3068.3,3067.3,0.002]
[1768920233675,8.37815954,3068.3,3067.3,0.002]
[1768920233874,11.63732265,3068.3,3067.3,0.002]
[1768920234094,0.95628819,3068.2,3067.0,0.002]
[1768920234238,0.95628819,3068.0,3065.9,3.26160339]
[1768920234440,0.482,3067.9,3065.7,0.002]
[1768920234747,0.95628819,3067.8,3065.7,0.002]
[1768920235165,0.482,3067.9,3065.7,0.002]
[1768920235166,0.95628819,3067.6,3065.7,0.002]
[1768920235469,0.482,3067.9,3065.7,0.002]
[1768920235470,0.95628819,3067.2,3065.7,0.002]
[1768920235777,0.95628819,3067.0,3065.7,0.002]
[1768920236780,0.95628819,3066.8,3065.7,0.002]
[1768920237000,0.95628819,3066.8,3064.2,0.99921108]
[1768920237143,3.225138,3066.5,3064.2,3.26348265]
[1768920237340,9.78441666,3066.1,3064.0,0.483]
[1768920237553,9.78441666,3066.1,3064.1,3.26358264]
[1768920237554,0.482,3066.0,3064.1,3.26358264]
[1768920237748,3.26147222,3066.1,3064.3,0.99921108]
[1768920237947,3.26147222,3066.1,3064.3,3.92237915]
[1768920237948,0.482,3066.1,3064.3,3.92237915]
[1768920238467,0.482,3066.1,3064.3,0.99921108]
[1768920238644,0.95628819,3066.0,3064.1,3.26358264]
[1768920238848,0.95628819,3066.0,3064.0,3.74670376]
[1768920238849,0.95628819,3066.0,3064.0,3.74666205]
[1768920239055,0.0008,3065.4,3064.1,0.70104732]
[1768920239252,0.4828,3065.4,3064.2,0.03263494]
[1768920239561,0.4828,3065.4,3064.0,0.002]
[1768920239760,0.0008,3065.4,3064.0,0.002]
[1768920239961,0.0008,3065.4,3064.0,1.00121108]
[1768920240371,3.225138,3067.2,3064.5,0.99921108]
[1768920240670,0.95628819,3067.3,3064.5,0.99921108]
[1768920240671,0.90014262,3067.1,3064.6,1.84672541]
[1768920240870,0.95628819,3067.0,3064.5,0.99921108]
[1768920241072,0.95628819,3066.9,3064.3,0.48]
[1768920241378,0.95628819,3066.5,3064.3,0.48]
[1768920241576,6.52230628,3066.4,3064.4,3.26328155]
[1768920241773,9.78345942,3066.4,3064.4,3.26328155]
[1768920242074,1.07397476,3066.3,3064.5,0.37432816]
[1768920242553,0.482,3066.2,3064.6,0.03263068]
[1768920242756,0.482,3066.2,3064.5,0.37432816]
[1768920242964,3.26115314,3066.4,3064.5,0.37432816]
[1768920243168,0.482,3066.1,3064.5,0.37432816]
[1768920243369,0.482,3066.1,3064.6,1.11633839]
[1768920243572,3.26115314,3066.4,3064.7,6.52592422]
[1768920243773,6.52238419,3066.4,3064.7,6.52592422]
[1768920244083,0.482,3066.3,3064.7,3.26296211]
[1768920244484,0.95628819,3066.2,3064.0,0.002]
[1768920244683,0.482,3066.1,3064.6,3.26306858]
[1768920244861,1.02656152,3066.2,3064.6,3.26306858]
[1768920245068,0.482,3066.1,3064.6,6.52613716]
[1768920245372,0.95628819,3066.7,3064.6,6.52613716]
[1768920245373,0.482,3066.0,3064.6,6.52613716]
[1768920245585,0.95628819,3066.1,3064.7,0.65261372]
[1768920245786,0.482,3066.2,3064.0,0.39443791]
[1768920245787,3.225138,3065.8,3064.0,0.39443791]
[1768920245950,3.2615786,3066.0,3064.7,3.26290012]
[1768920246281,0.95628819,3066.6,3064.8,0.03262855]
[1768920246282,3.26104679,3066.5,3064.8,0.03262855]
[1768920246479,3.26015134,3067.4,3064.8,0.03262855]
[1768920246480,0.95628819,3067.2,3064.8,0.03262855]
[1768920246677,3.34131069,3067.5,3064.7,13.05178645]
[1768920246678,1.43828819,3067.1,3064.7,9.78882434]
[1768920246865,0.95628819,3067.0,3064.7,6.52586223]
[1768920247051,0.95628819,3067.0,3064.8,0.75250733]
[1768920247489,0.482,3067.1,3064.8,0.75250733]
[1768920247490,0.95628819,3066.8,3064.8,0.75250733]
[1768920247663,0.95628819,3066.8,3064.9,6.52549838]
[1768920247854,4.21637816,3067.4,3065.2,0.99921108]
[1768920248055,3.68073661,3068.3,3065.5,3.92237915]
[1768920248056,6.51983073,3067.6,3065.5,3.92237915]
[1768920248277,0.95628819,3068.0,3065.6,1.391449]
[1768920248493,0.95628819,3067.7,3065.6,0.39223792]
[1768920248677,0.95628819,3067.3,3065.0,0.99921108]
[1768920248879,3.225138,3067.1,3064.9,6.52549838]
[1768920249593,0.481,3067.0,3064.9,6.52549838]
[1768920249793,7.47753113,3066.9,3064.9,6.52549838]
[1768920250099,7.47753113,3066.9,3064.9,3.26274919]
[1768920250100,10.7381526,3066.9,3064.9,3.26274919]
[1768920250398,1.12191526,3066.8,3064.9,6.52549838]
[1768920250560,1.12191526,3066.8,3064.4,0.99921108]